bitfinex/quotes_BTCUSD_20220201
["timestamp","ask_amount","ask_price","bid_price","bid_amount"]
[1643676777736,0.11516146,38378.0,38377.0,0.00111072]
[1643676778135,0.18032346,38378.0,38369.0,0.42924632]
[1643676778388,0.18032346,38378.0,38376.0,0.00111075]
[1643676779890,0.18032346,38378.0,38375.0,0.00111076]
[1643676780689,0.18032346,38378.0,38372.0,0.10345438]
[1643676780890,0.06516573,38377.0,38375.0,0.00111077]
[1643676781691,0.115162,38378.0,38375.0,0.00111077]
[1643676781894,0.115162,38378.0,38374.0,0.26814868]
[1643676782141,0.065162,38378.0,38372.0,0.10345438]
[1643676782340,0.065162,38378.0,38374.0,0.00111079]
[1643676783142,0.065162,38378.0,38374.0,0.30592904]
[1643676783341,0.13032195,38378.0,38374.0,0.30703983]
[1643676783742,0.18021135,38378.0,38374.0,0.30703983]
[1643676784245,0.18021135,38378.0,38374.0,0.30592904]
[1643676784445,0.18021135,38378.0,38374.0,0.30728976]
[1643676785443,0.18021135,38378.0,38374.0,0.30592904]
[1643676785643,0.18021135,38378.0,38374.0,0.30728976]
[1643676786692,0.18021135,38378.0,38374.0,0.30592904]
[1643676786892,0.18021135,38378.0,38374.0,0.30728976]
[1643676787495,0.11515995,38378.0,38374.0,0.30728976]
[1643676788996,0.11515995,38378.0,38374.0,0.30592904]
[1643676789195,0.11515995,38378.0,38374.0,0.30728976]
[1643676790340,0.11515995,38378.0,38374.0,0.30592904]
[1643676790542,0.18032095,38378.0,38374.0,0.30728976]
[1643676791546,0.18032095,38378.0,38372.0,0.10345438]
[1643676791746,0.0651621,38377.0,38374.0,0.00136072]
[1643676792743,0.0651621,38377.0,38373.0,0.27685716]
[1643676792943,0.0651621,38377.0,38374.0,0.00136074]
[1643676793795,0.0651621,38377.0,38375.0,0.351131]
[1643676794401,0.11515617,38378.0,38376.0,0.37208285]
[1643676794597,0.06515617,38378.0,38376.0,0.37208285]
[1643676795399,0.11515617,38378.0,38376.0,0.37208285]
[1643676795599,0.06515617,38378.0,38376.0,0.37208285]
[1643676797449,0.06515617,38378.0,38375.0,0.00105453]
[1643676798947,0.06515617,38378.0,38375.0,0.0013607]
[1643676799954,0.06515617,38378.0,38374.0,0.39942912]
[1643676800147,0.06515617,38378.0,38375.0,0.0013607]
[1643676801295,0.06515617,38378.0,38374.0,0.39942912]
[1643676801492,0.06515617,38378.0,38375.0,0.0013607]
[1643676802498,0.06515617,38378.0,38374.0,0.39942912]
[1643676802695,0.06515617,38378.0,38375.0,0.0013607]
[1643676803595,0.06515617,38378.0,38374.0,0.39942912]
[1643676803793,0.06515617,38378.0,38375.0,0.0013607]
[1643676804940,0.06515617,38378.0,38374.0,0.39942912]
[1643676805146,0.06515617,38378.0,38375.0,0.0013607]
[1643676806142,0.06515617,38378.0,38370.0,0.3889]
[1643676806345,0.07790654,38371.0,38370.0,0.3889]
[1643676806544,0.14307674,38371.0,38368.0,0.38336492]
[1643676806744,0.19307674,38371.0,38368.0,0.38336492]
[1643676806947,0.19307674,38371.0,38367.0,0.38336492]
[1643676807144,0.19307674,38371.0,38367.0,0.41077577]
[1643676807544,0.19307674,38371.0,38366.0,0.67730713]
[1643676807750,0.19307674,38371.0,38368.0,0.38336492]
[1643676807945,0.19307674,38371.0,38367.0,0.44989489]
[1643676808590,0.1151702,38371.0,38367.0,0.44853392]
[1643676808792,0.1151702,38371.0,38368.0,0.4107728]
[1643676808991,0.05,38371.0,38369.0,0.416298]
[1643676809391,0.11516606,38373.0,38369.0,0.416298]
[1643676809691,0.11516606,38373.0,38369.0,0.411298]
[1643676809692,0.06516606,38373.0,38369.0,0.411298]
[1643676809892,0.11516606,38373.0,38369.0,0.06622169]
[1643676810090,0.06516606,38373.0,38369.0,0.06622169]
[1643676810294,0.20836578,38373.0,38369.0,0.06622169]
[1643676810492,0.11516606,38373.0,38369.0,0.06622169]
[1643676810894,0.11516606,38373.0,38369.0,0.065167]
[1643676811095,0.11516606,38373.0,38369.0,0.06622169]
[1643676812149,0.11516606,38373.0,38369.0,0.065167]
[1643676812348,0.11516606,38373.0,38369.0,0.06622169]
[1643676813445,0.11516606,38373.0,38369.0,0.065167]
[1643676813643,0.11516606,38373.0,38369.0,0.06629059]
[1643676813844,0.05,38373.0,38369.0,0.06629059]
[1643676814245,0.1035777,38374.0,38369.0,0.06629059]
[1643676814246,0.1535777,38374.0,38369.0,0.06629059]
[1643676814645,0.1535777,38374.0,38369.0,0.065167]
[1643676814844,0.1535777,38374.0,38369.0,0.06629059]
[1643676815345,0.06516532,38373.0,38369.0,0.06629059]
[1643676815792,0.06516532,38373.0,38369.0,0.065167]
[1643676815993,0.06516532,38373.0,38369.0,0.06629059]
[1643676816993,0.06516532,38373.0,38369.0,0.065167]
[1643676817194,0.06516532,38373.0,38369.0,0.06627509]
[1643676817993,0.05,38375.0,38369.0,0.300965]
[1643676818199,0.05,38373.0,38370.0,0.347496]
[1643676818394,0.05,38375.0,38371.0,0.31604193]
[1643676818594,0.1303171,38381.0,38372.0,0.347475]
[1643676818795,0.1303171,38381.0,38371.0,0.065159]
[1643676818994,0.1303171,38381.0,38373.0,0.28379066]
[1643676819195,0.1303171,38381.0,38373.0,0.61329532]
[1643676819648,0.22571504,38381.0,38375.0,0.00110791]
[1643676819848,0.44684997,38381.0,38375.0,0.00110791]
[1643676820248,0.05,38380.0,38375.0,0.00110791]
[1643676820449,0.06515591,38378.0,38375.0,0.00110791]
[1643676820650,0.06515591,38378.0,38374.0,0.14221813]
[1643676820853,0.06515591,38378.0,38376.0,0.00111139]
[1643676821851,0.06515591,38378.0,38374.0,0.065157]
[1643676822052,0.06515591,38378.0,38375.0,0.0011114]
[1643676822950,0.06515591,38378.0,38374.0,0.065157]
[1643676823152,0.06515591,38378.0,38375.0,0.00111142]
[1643676823801,0.06015591,38378.0,38375.0,0.00111142]
[1643676824203,0.06015591,38378.0,38374.0,0.065157]
[1643676824401,0.06015591,38378.0,38375.0,0.00111063]
[1643676825400,0.06015591,38378.0,38374.0,0.065157]
[1643676825601,0.06015591,38378.0,38375.0,0.00111063]
[1643676826602,0.06015591,38378.0,38374.0,0.065157]
[1643676826803,0.06015591,38378.0,38375.0,0.00111063]
[1643676827843,0.06015591,38378.0,38374.0,0.065157]
[1643676828044,0.06015591,38378.0,38375.0,0.00111081]
[1643676829047,0.06015591,38378.0,38373.0,0.32950466]
[1643676829249,0.06015591,38378.0,38375.0,0.00111081]
[1643676830250,0.11015591,38378.0,38373.0,0.39466466]
[1643676830451,0.11015591,38378.0,38375.0,0.00111081]
[1643676831497,0.11015591,38378.0,38373.0,0.13032]
[1643676831699,0.11015591,38378.0,38375.0,0.00111077]
[1643676832598,0.11015591,38378.0,38373.0,0.13032]
[1643676832799,0.11015591,38378.0,38375.0,0.00111077]
[1643676833906,0.11015591,38378.0,38373.0,0.13032]
[1643676834101,0.11015591,38378.0,38375.0,0.00111077]
[1643676835150,0.11015591,38378.0,38373.0,0.13032]
[1643676835351,0.11015591,38378.0,38375.0,0.00111078]
[1643676836246,0.11015591,38378.0,38373.0,0.13032]
[1643676836450,0.11015591,38378.0,38375.0,0.00111078]
[1643676837447,0.11015591,38378.0,38374.0,0.130314]
[1643676837648,0.11015591,38378.0,38375.0,0.00111078]
[1643676838799,0.11015591,38378.0,38374.0,0.130314]
[1643676839003,0.11015591,38378.0,38375.0,0.00111077]
[1643676840000,0.11015591,38378.0,38374.0,0.130314]
[1643676840201,0.11015591,38378.0,38375.0,0.00111077]
[1643676841203,0.11015591,38378.0,38374.0,0.130314]
[1643676841404,0.11015591,38378.0,38375.0,0.00111077]
[1643676842447,0.11015591,38378.0,38368.0,0.130322]
[1643676842647,0.11015591,38378.0,38375.0,0.00111078]
[1643676842846,0.03988922,38375.0,38372.0,0.065163]
[1643676843046,0.10505275,38375.0,38372.0,0.065163]
[1643676843444,0.15505275,38375.0,38372.0,0.065163]
[1643676844945,0.15505275,38375.0,38370.0,0.130328]
[1643676845146,0.22018489,38374.0,38370.0,0.130328]
[1643676845546,0.15505275,38375.0,38370.0,0.130328]
[1643676845999,0.16550475,38375.0,38370.0,0.130328]
[1643676846200,0.16550475,38375.0,38371.0,0.00135529]
[1643676846802,0.15505275,38375.0,38371.0,0.00135529]
[1643676847200,0.15505275,38375.0,38370.0,0.130328]
[1643676847400,0.15505275,38375.0,38371.0,0.00135527]
[1643676847803,0.21935758,38374.0,38371.0,0.00135527]
[1643676848399,0.21935758,38374.0,38370.0,0.130328]
[1643676848600,0.15505275,38375.0,38371.0,0.00135529]
[1643676849404,0.08988922,38375.0,38371.0,0.00135529]
[1643676849648,0.08988922,38375.0,38366.0,0.82123235]
[1643676849848,0.05034122,38375.0,38371.0,0.00135527]
[1643676850051,0.03988922,38375.0,38371.0,0.00135527]
[1643676850748,0.03988922,38375.0,38369.0,0.260656]
[1643676850947,0.03988922,38375.0,38371.0,0.00135527]
[1643676851148,0.03988922,38375.0,38372.0,0.065164]
[1643676851551,0.03988922,38375.0,38372.0,0.130328]
[1643676852250,0.03988922,38375.0,38372.0,0.13168325]
[1643676853307,0.03988922,38375.0,38372.0,0.130328]
[1643676853508,0.03988922,38375.0,38372.0,0.13168325]
[1643676854410,0.03988922,38375.0,38372.0,0.130328]
[1643676854611,0.03988922,38375.0,38372.0,0.13168325]
[1643676855612,0.03988922,38375.0,38372.0,0.130328]
[1643676855813,0.03988922,38375.0,38372.0,0.13168325]
[1643676856915,0.03988922,38375.0,38372.0,0.130328]
[1643676857168,0.03988922,38375.0,38372.0,0.13168325]
[1643676857965,0.03988922,38375.0,38372.0,0.130328]
[1643676858164,0.03988922,38375.0,38372.0,0.13168325]
[1643676859269,0.03988922,38375.0,38372.0,0.130328]
[1643676859470,0.03988922,38375.0,38372.0,0.13168325]
[1643676859672,0.03988922,38375.0,38372.0,0.12568325]
[1643676860370,0.03988922,38375.0,38372.0,0.124328]
[1643676860571,0.03988922,38375.0,38372.0,0.12568325]
[1643676861598,0.03988922,38375.0,38372.0,0.124328]
[1643676861798,0.03988922,38375.0,38372.0,0.12537832]
[1643676862799,0.03988922,38375.0,38372.0,0.124328]
[1643676862999,0.03988922,38375.0,38372.0,0.12537832]
[1643676863213,0.7,38373.0,38369.0,0.195497]
[1643676863403,0.7,38373.0,38363.0,0.002]
[1643676863404,0.351151,38370.0,38363.0,0.002]
[1643676863602,0.24739876,38369.0,38363.0,0.002]
[1643676863904,0.2617479,38365.0,38363.0,0.002]
[1643676864102,0.08391271,38364.0,38363.0,0.002]
[1643676864755,0.13391271,38364.0,38363.0,0.002]
[1643676865554,0.38166489,38364.0,38363.0,0.002]
[1643676872349,0.05,38364.0,38363.0,0.002]
[1643676872751,0.24739876,38370.0,38363.0,0.002]
[1643676872947,0.351151,38369.0,38363.0,0.002]
[1643676873149,0.411605,38369.0,38363.0,0.002]
[1643676873550,0.401151,38369.0,38363.0,0.132357]
[1643676873748,0.351151,38369.0,38363.0,0.132357]
[1643676873950,0.03988922,38375.0,38364.0,0.24874902]
[1643676874152,0.03988922,38375.0,38366.0,0.05]
[1643676874348,0.05836433,38375.0,38366.0,0.05]
[1643676874548,0.05836433,38375.0,38369.0,0.54277394]
[1643676874750,0.05836433,38375.0,38371.0,0.065163]
[1643676875050,0.05836433,38375.0,38372.0,0.2363445]
[1643676875254,0.05836433,38375.0,38370.0,0.25369006]
[1643676875897,0.03988922,38375.0,38370.0,0.25369006]
[1643676876399,0.03988922,38375.0,38371.0,0.065161]
[1643676876801,0.12735261,38375.0,38372.0,0.065161]
[1643676877001,0.12735261,38375.0,38371.0,0.065161]
[1643676878402,0.03988922,38375.0,38372.0,0.23187935]
[1643676879652,0.03988922,38375.0,38372.0,0.36484648]
[1643676879852,0.03988922,38375.0,38373.0,0.399375]
[1643676880057,0.03988922,38375.0,38374.0,0.7]
[1643676880253,0.03988922,38375.0,38374.0,1.099354]
[1643676881456,0.03988922,38375.0,38374.0,0.464507]
[1643676882052,0.03988922,38375.0,38374.0,0.72876966]
[1643676883606,0.03988922,38375.0,38374.0,0.38131566]
[1643676883807,0.03988922,38375.0,38374.0,0.72876966]
[1643676885410,0.03981087,38375.0,38374.0,0.464507]
[1643676885612,0.03981087,38375.0,38374.0,0.69651049]
[1643676885809,0.03981087,38375.0,38374.0,0.464507]
[1643676886612,0.03981087,38375.0,38374.0,0.69979131]
[1643676886810,0.03981087,38375.0,38374.0,0.464507]
[1643676887060,0.03981087,38375.0,38374.0,0.706385]
[1643676887449,0.03981087,38375.0,38374.0,0.464507]
[1643676887649,0.03981087,38375.0,38374.0,0.6972356]
[1643676891105,0.02302754,38375.0,38374.0,1.3472356]
[1643676891306,0.02302754,38375.0,38374.0,0.6972356]
[1643676892905,0.02302754,38375.0,38374.0,0.464507]
[1643676893105,0.02302754,38375.0,38374.0,0.69748736]
[1643676894650,0.02302754,38375.0,38374.0,0.399354]
[1643676895250,0.02302754,38375.0,38374.0,0.347454]
[1643676895655,0.02302754,38375.0,38373.0,0.130303]
[1643676896653,0.02302754,38375.0,38372.0,0.06516]
[1643676896856,0.02302754,38375.0,38368.0,0.24824]
[1643676896857,0.09402754,38375.0,38370.0,0.00110194]
[1643676897157,0.14402754,38375.0,38370.0,0.00110194]
[1643676897752,0.10090091,38371.0,38370.0,0.00110194]
[1643676897952,0.10090091,38371.0,38365.0,0.60980424]
[1643676898151,0.10090091,38371.0,38370.0,0.00110212]
[1643676898400,0.06517619,38372.0,38370.0,0.00110212]
[1643676898604,0.02302754,38375.0,38370.0,0.00110212]
[1643676899502,0.10928753,38375.0,38370.0,0.065168]
[1643676899699,0.15928753,38375.0,38370.0,0.06627012]
[1643676900503,0.15928753,38375.0,38370.0,0.065168]
[1643676900504,0.02302754,38375.0,38370.0,0.065168]
[1643676900702,0.02302754,38375.0,38370.0,0.06627008]
[1643676900903,0.02302754,38375.0,38372.0,0.130318]
[1643676901106,0.02302754,38375.0,38374.0,0.23522835]
[1643676901902,0.02302754,38375.0,38374.0,0.58268235]
[1643676902153,0.02302754,38375.0,38374.0,0.347454]
[1643676902353,0.02302754,38375.0,38373.0,0.065159]
[1643676904554,0.02302754,38375.0,38372.0,0.46806714]
[1643676906305,0.02302754,38375.0,38372.0,0.53322714]
[1643676906503,0.02302754,38375.0,38374.0,0.765158]
[1643676906703,0.02302754,38375.0,38374.0,0.64569839]
[1643676906902,0.02302754,38375.0,38374.0,0.412612]
[1643676907704,0.02302754,38375.0,38374.0,0.64552257]
[1643676907904,0.02302754,38375.0,38374.0,0.412612]
[1643676908105,0.02302754,38375.0,38374.0,0.347454]
[1643676908909,0.02302754,38375.0,38373.0,0.065158]
[1643676910357,0.02302754,38375.0,38374.0,0.347454]
[1643676913307,0.02302754,38375.0,38374.0,0.70857119]
[1643676915712,0.02296252,38375.0,38374.0,0.65857119]
[1643676916618,0.02296252,38375.0,38374.0,0.70857119]
[1643676917058,0.02296252,38375.0,38374.0,0.76047119]
[1643676918655,0.02296252,38375.0,38374.0,0.514509]
[1643676918856,0.02296252,38375.0,38374.0,0.464509]
[1643676919056,0.02296252,38375.0,38374.0,0.412609]
[1643676919260,0.02296252,38375.0,38374.0,0.347454]
[1643676921200,0.02296252,38375.0,38373.0,0.065158]
[1643676922601,0.02296252,38375.0,38374.0,0.347454]
[1643676926056,0.02296252,38375.0,38373.0,0.065158]
[1643676930103,0.09700496,38374.0,38373.0,0.065158]
[1643676930305,0.09700496,38374.0,38372.0,0.195478]
[1643676930504,0.09700496,38374.0,38373.0,0.347463]
[1643676933254,0.02296252,38375.0,38373.0,0.347463]
[1643676933452,0.02296252,38375.0,38372.0,0.195478]
[1643676934252,0.02296252,38375.0,38372.0,0.130318]
[1643676934453,0.02296252,38375.0,38373.0,0.065158]
[1643676934856,0.10803672,38375.0,38373.0,0.065158]
[1643676936408,0.02296252,38375.0,38373.0,0.065158]
[1643676941659,0.09311346,38374.0,38373.0,0.065158]
[1643676941860,0.09311346,38374.0,38372.0,0.195477]
[1643676941861,0.09311346,38374.0,38372.0,0.130318]
[1643676942060,0.09311346,38374.0,38370.0,0.00107424]
[1643676942061,0.14311346,38374.0,38370.0,0.00107424]
[1643676942458,0.403051,38373.0,38370.0,0.00107424]
[1643676942857,0.23339888,38371.0,38370.0,0.00107424]
[1643676943059,0.23339888,38371.0,38365.0,0.05]
[1643676943060,0.64972653,38371.0,38365.0,0.05]
[1643676943305,0.34849224,38371.0,38365.0,0.115179]
[1643676943502,0.34849224,38371.0,38370.0,0.00107424]
[1643676943703,0.69964324,38371.0,38370.0,0.00107424]
[1643676944107,0.69964324,38371.0,38365.0,0.05]
[1643676944305,0.34849224,38371.0,38369.0,0.00110839]
[1643676945308,0.34849224,38371.0,38365.0,0.05]
[1643676945503,0.34849224,38371.0,38368.0,0.00110841]
[1643676946604,0.34849224,38371.0,38366.0,0.065178]
[1643676946804,0.34849224,38371.0,38368.0,0.00110842]
[1643676949158,0.34849224,38371.0,38368.0,0.00110075]
[1643676950159,0.34849224,38371.0,38365.0,0.05]
[1643676950360,0.34849224,38371.0,38368.0,0.00110075]
[1643676950568,0.34849224,38371.0,38363.0,0.002]
[1643676950569,0.06408025,38365.0,38363.0,0.002]
[1643676952234,0.33508665,38365.0,38363.0,0.002]
[1643676960714,0.06408025,38365.0,38363.0,0.002]
[1643676960913,0.1318097,38373.0,38363.0,0.002]
[1643676961119,0.130348,38373.0,38363.0,0.002]
[1643676961310,0.05,38372.0,38363.0,0.002]
[1643676961708,0.28973241,38368.0,38363.0,0.002]
[1643676961911,0.35490641,38368.0,38363.0,0.002]
[1643676962672,0.35490641,38368.0,38364.0,0.00134478]
[1643676963472,0.35490641,38368.0,38363.0,0.002]
[1643676963675,0.35490641,38368.0,38364.0,0.00134476]
[1643676964674,0.35490641,38368.0,38363.0,0.002]
[1643676964872,0.35490641,38368.0,38364.0,0.00067323]
[1643676965912,0.35490641,38368.0,38363.0,0.002]
[1643676966216,0.35490641,38368.0,38364.0,0.00067323]
[1643676967111,0.35490641,38368.0,38363.0,0.002]
[1643676967314,0.35490641,38368.0,38364.0,0.00067323]
[1643676968314,0.35490641,38368.0,38363.0,0.002]
[1643676968514,0.35490641,38368.0,38364.0,0.00134476]
[1643676969664,0.35490641,38368.0,38363.0,0.002]
[1643676969862,0.35490641,38368.0,38364.0,0.00134476]
[1643676970863,0.35490641,38368.0,38363.0,0.002]
[1643676971063,0.35490641,38368.0,38364.0,0.00134476]
[1643676971965,0.35490641,38368.0,38363.0,0.002]
[1643676972266,0.35490641,38368.0,38364.0,0.00134476]
[1643676973165,0.35490641,38368.0,38363.0,0.002]
[1643676973408,0.35490641,38368.0,38364.0,0.00134476]
[1643676974215,0.40490641,38368.0,38364.0,0.00134476]
[1643676974411,0.40490641,38368.0,38363.0,0.002]
[1643676974612,0.40490641,38368.0,38364.0,0.00134476]
[1643676974811,0.47008941,38368.0,38364.0,0.00134476]
[1643676975213,0.05,38365.0,38364.0,0.00134476]
[1643676975414,0.05,38365.0,38364.0,0.00126219]
[1643676975612,0.05,38365.0,38363.0,0.002]
[1643676975613,0.401151,38365.0,38363.0,0.002]
[1643676975912,0.351151,38364.0,38363.0,0.002]
[1643676976112,0.401151,38364.0,38363.0,0.002]
[1643676976514,0.501151,38364.0,38363.0,0.002]
[1643676978258,0.553051,38364.0,38363.0,0.002]
[1643676978458,0.503051,38364.0,38363.0,0.002]
[1643676978860,0.55294801,38364.0,38363.0,0.002]
[1643676979465,0.65294801,38364.0,38363.0,0.002]
[1643676979660,0.603051,38364.0,38363.0,0.002]
[1643676979861,0.55294801,38364.0,38363.0,0.002]
[1643676980361,0.60294801,38364.0,38363.0,0.002]
[1643676980561,0.65294801,38364.0,38363.0,0.002]
[1643676980820,0.70294801,38364.0,38363.0,0.002]
[1643676981017,0.65294801,38364.0,38363.0,0.002]
[1643676981817,0.66340301,38364.0,38363.0,0.002]
[1643676982022,0.65294801,38364.0,38363.0,0.002]
[1643676982618,0.45294801,38364.0,38363.0,0.002]
[1643676982820,0.403051,38364.0,38363.0,0.002]
[1643676983218,0.45294801,38364.0,38363.0,0.002]
[1643676984020,0.65294801,38364.0,38363.0,0.002]
[1643676985661,0.66340301,38364.0,38363.0,0.002]
[1643676986063,0.65294801,38364.0,38363.0,0.002]
[1643676993559,0.66340301,38364.0,38363.0,0.002]
[1643676994360,0.65294801,38364.0,38363.0,0.002]
[1643676996610,0.65294801,38364.0,38358.0,0.04398002]
[1643676996611,0.04989701,38360.0,38358.0,0.04398002]
[1643676996811,0.351151,38359.0,38358.0,0.0031]
[1643676997011,0.451151,38359.0,38358.0,0.0031]
[1643676997213,0.551151,38359.0,38358.0,0.0031]
[1643676997813,0.451151,38359.0,38358.0,0.0031]
[1643676998715,0.54926778,38359.0,38358.0,0.0031]
[1643676999318,0.64926778,38359.0,38358.0,0.0031]
[1643676999755,0.54926778,38359.0,38358.0,0.0031]
[1643677000261,0.64926778,38359.0,38358.0,0.0031]
[1643677003411,0.54926778,38359.0,38358.0,0.0031]
[1643677004212,0.64926778,38359.0,38358.0,0.0031]
[1643677005013,0.65972378,38359.0,38358.0,0.0031]
[1643677005417,0.64926778,38359.0,38358.0,0.0031]
[1643677005815,0.25034753,38354.0,37855.0,0.0206083]
[1643677006016,0.31554953,38354.0,38353.0,0.02186706]
[1643677006217,0.31554953,38354.0,38350.0,0.0031]
[1643677006218,0.36554953,38354.0,38350.0,0.0031]
[1643677007161,0.31554953,38354.0,38350.0,0.0031]
[1643677007360,0.36554953,38354.0,38350.0,0.0031]
[1643677007663,0.41554953,38354.0,38350.0,0.0031]
[1643677008559,0.41554953,38354.0,38350.0,0.0036503]
[1643677008759,0.37600653,38354.0,38350.0,0.0036503]
[1643677008959,0.32600653,38354.0,38350.0,0.0036503]
[1643677009160,0.31554953,38354.0,38350.0,0.0036503]
[1643677009758,0.36554953,38354.0,38350.0,0.00419785]
[1643677010159,0.31554953,38354.0,38350.0,0.00419785]
[1643677010811,0.31554953,38354.0,38350.0,0.0031]
[1643677011009,0.31554953,38354.0,38350.0,0.00419785]
[1643677012012,0.31554953,38354.0,38350.0,0.0031]
[1643677012212,0.31554953,38354.0,38350.0,0.00419233]
[1643677012612,0.38075053,38354.0,38350.0,0.00419233]
[1643677013214,0.38075053,38354.0,38350.0,0.0031]
[1643677013417,0.38075053,38354.0,38350.0,0.00419233]
[1643677013813,0.31554953,38354.0,38350.0,0.00419233]
[1643677014416,0.31554953,38354.0,38350.0,0.30121726]
[1643677014661,0.31554953,38354.0,38350.0,0.00419233]
[1643677014861,0.38075153,38354.0,38350.0,0.00419233]
[1643677015661,0.38075153,38354.0,38350.0,0.0031]
[1643677015861,0.38075153,38354.0,38350.0,0.00419357]
[1643677016764,0.38075153,38354.0,38350.0,0.0031]
[1643677016962,0.38075153,38354.0,38350.0,0.00419357]
[1643677017763,0.31554953,38354.0,38350.0,0.00419357]
[1643677017962,0.31554953,38354.0,38350.0,0.0031]
[1643677018419,0.31554953,38354.0,38350.0,0.00419357]
[1643677019222,0.31554953,38354.0,38350.0,0.0031]
[1643677019420,0.31554953,38354.0,38350.0,0.0693923]
[1643677020019,0.31554953,38354.0,38350.0,0.0041933]
[1643677020420,0.31554953,38354.0,38350.0,0.0031]
[1643677020621,0.31554953,38354.0,38350.0,0.0041933]
[1643677020823,0.38075253,38354.0,38350.0,0.0041933]
[1643677021623,0.38075253,38354.0,38350.0,0.0031]
[1643677021822,0.38075253,38354.0,38350.0,0.0041933]
[1643677022860,0.38075253,38354.0,38350.0,0.0031]
[1643677023061,0.38075253,38354.0,38350.0,0.00419336]
[1643677024069,0.38075253,38354.0,38350.0,0.0031]
[1643677024266,0.38075253,38354.0,38350.0,0.00419336]
[1643677025266,0.38075253,38354.0,38350.0,0.0031]
[1643677025566,0.38075253,38354.0,38350.0,0.00419336]
[1643677026512,0.38075253,38354.0,38350.0,0.0031]
[1643677026718,0.38075253,38354.0,38350.0,0.00419334]
[1643677027715,0.38075253,38354.0,38350.0,0.0031]
[1643677027915,0.38075253,38354.0,38350.0,0.00419334]
[1643677028918,0.21821413,38353.0,38350.0,0.0031]
[1643677029119,0.05,38353.0,38350.0,0.00419334]
[1643677029322,0.180408,38353.0,38350.0,0.00419334]
[1643677029763,0.04992588,38352.0,38350.0,0.00419334]
[1643677029962,0.04992588,38352.0,38350.0,0.0031]
[1643677030162,0.04992588,38352.0,38350.0,0.00419336]
[1643677031266,0.04992588,38352.0,38350.0,0.0031]
[1643677032267,0.115202,38354.0,38350.0,0.26424457]
[1643677032469,0.065202,38354.0,38350.0,0.26424457]
[1643677032666,0.065202,38354.0,38350.0,0.0031]
[1643677033512,0.065202,38354.0,38351.0,0.27724039]
[1643677033712,0.065202,38354.0,38350.0,0.0031]
[1643677033912,0.065202,38354.0,38350.0,0.00419335]
[1643677034913,0.065202,38354.0,38350.0,0.0031]
[1643677035113,0.065202,38354.0,38350.0,0.00419335]
[1643677035518,0.065202,38354.0,38351.0,0.065197]
[1643677035916,0.065202,38354.0,38350.0,0.00419335]
[1643677036117,0.065202,38354.0,38350.0,0.0031]
[1643677036318,0.065202,38354.0,38351.0,0.00109333]
[1643677037369,0.065202,38354.0,38350.0,0.0031]
[1643677037565,0.115202,38354.0,38351.0,0.00109333]
[1643677037762,0.065202,38354.0,38351.0,0.00109333]
[1643677037965,0.23128451,38353.0,38351.0,0.00109333]
[1643677038365,0.33128451,38353.0,38351.0,0.00109333]
[1643677038564,0.22118876,38352.0,38350.0,0.0031]
[1643677038766,0.351151,38351.0,38350.0,0.00419335]
[1643677039166,0.57198693,38351.0,38350.0,0.00419335]
[1643677039365,0.57243851,38351.0,38350.0,0.00419335]
[1643677039770,0.57243851,38351.0,38350.0,0.0031]
[1643677040168,0.22128751,38351.0,38350.0,0.0031]
[1643677040667,0.34033868,38353.0,38350.0,0.0031]
[1643677041315,0.34033868,38353.0,38350.0,0.00419336]
[1643677042318,0.34033868,38353.0,38350.0,0.0031]
[1643677042515,0.34033868,38353.0,38350.0,0.00419336]
[1643677043516,0.34033868,38353.0,38350.0,0.0031]
[1643677043716,0.34033868,38353.0,38350.0,0.00419336]
[1643677044663,0.34033868,38353.0,38350.0,0.0031]
[1643677044865,0.34033868,38353.0,38350.0,0.00419336]
[1643677045963,0.34033868,38353.0,38350.0,0.0031]
[1643677046163,0.34033868,38353.0,38350.0,0.00419336]
[1643677047171,0.43553488,38353.0,38350.0,0.0031]
[1643677047369,0.351151,38352.0,38350.0,0.00419336]
[1643677047565,0.401151,38352.0,38350.0,0.00419336]
[1643677047965,0.351151,38351.0,38350.0,0.00419336]
[1643677048420,0.351151,38351.0,38350.0,0.0031]
[1643677049322,0.59733861,38351.0,38350.0,0.0031]
[1643677051722,0.59733861,38351.0,38348.0,0.0022]
[1643677051723,0.365217,38350.0,38348.0,0.0022]
[1643677051925,0.60169005,38349.0,38348.0,0.0022]
[1643677053572,0.25053905,38349.0,38348.0,0.0022]
[1643677059217,0.21797728,38349.0,38348.0,0.0022]
[1643677059571,0.22329098,38349.0,38348.0,0.0022]
[1643677060564,0.22654119,38349.0,38348.0,0.0022]
[1643677064217,0.58195562,38350.0,38348.0,0.0022]
[1643677064417,0.4515166,38350.0,38348.0,0.0022]
[1643677069467,0.21756968,38349.0,38348.0,0.0022]
[1643677069667,0.21849108,38349.0,38348.0,0.0022]
[1643677069865,0.2189445,38349.0,38348.0,0.0022]
[1643677070065,0.4515166,38350.0,38348.0,0.0022]
[1643677070921,0.4619746,38350.0,38348.0,0.0022]
[1643677071820,0.4515166,38350.0,38348.0,0.0022]
[1643677073327,0.22022794,38349.0,38348.0,0.0022]
[1643677073523,0.4515166,38350.0,38348.0,0.0022]
[1643677073724,0.22035992,38349.0,38348.0,0.0022]
[1643677073924,0.4515166,38350.0,38348.0,0.0022]
[1643677074793,0.4619746,38350.0,38348.0,0.0022]
[1643677075192,0.4515166,38350.0,38348.0,0.0022]
[1643677077996,0.22134114,38349.0,38348.0,0.0022]
[1643677078196,0.4515166,38350.0,38348.0,0.0022]
[1643677078819,0.4619746,38350.0,38348.0,0.0022]
[1643677079021,0.22611824,38349.0,38348.0,0.0022]
[1643677079822,0.22147194,38349.0,38348.0,0.0022]
[1643677093514,0.22797108,38349.0,38348.0,0.0022]
[1643677097168,0.22797108,38349.0,38347.0,0.001634]
[1643677097567,0.29319408,38349.0,38347.0,0.001634]
[1643677097867,0.29319408,38349.0,38347.0,0.0003]
[1643677097868,0.21859044,38348.0,38347.0,0.0003]
[1643677098069,0.26859044,38348.0,38347.0,0.0003]
[1643677101931,0.27904944,38348.0,38347.0,0.0003]
[1643677102330,0.26859044,38348.0,38347.0,0.0003]
[1643677105968,0.27904944,38348.0,38347.0,0.0003]
[1643677106169,0.26359044,38348.0,38347.0,0.0003]
[1643677107176,0.26359044,38348.0,38341.0,0.01]
[1643677107177,0.55,38347.0,38341.0,0.01]
[1643677107375,0.87894988,38346.0,38341.0,0.01]
[1643677107573,0.481625,38345.0,38341.0,0.01]
[1643677107771,0.24303874,38342.0,38341.0,0.01]